Cogmind - Beta 10.1 *** ADVENTURER MODE // 2020.10.01 @ 22:28:37 Player: Trantor Result: Destroyed by as-23712 with Assembled Blade Performance ------------- Evolutions (0) 0 Regions Visited (3) 600 Robots Destroyed (23) 115 Value Destroyed (398) 398 Prototype IDs (0) 0 Alien Tech Used (0) 0 Bonus (-18) -18 TOTAL SCORE: 1095 Bonus ------- Friendly Fire -18 Cogmind --------- Core Integrity 0/250 Matter 300/300 Energy 100/100 System Corruption 0% Temperature Cool (20) Movement Core (150) Ox2 Location -10/Exiles Parts ------- > --- POWER (1) -------- (None) > --- PROPULSION (2) --- (None) > --- UTILITY (2) ------ Medium Storage Unit Signal Interpreter > --- WEAPON (2) ------- (None) > --- INVENTORY (8) ---- Light Ion Engine Light Ion Engine Aluminum Leg Medium Storage Unit Large Storage Unit Sensor Array Medium Laser Assault Rifle Peak State ------------ > --- POWER ------------ Ion Engine > --- PROPULSION ------- Aluminum Leg Aluminum Leg > --- UTILITY ---------- Medium Storage Unit Signal Interpreter > --- WEAPON ----------- Particle Gun Assault Rifle > --- INVENTORY -------- Light Ion Engine Light Ion Engine Aluminum Leg Medium Storage Unit Large Storage Unit Sensor Array Medium Laser Welding Torch [Rating: 8] Favorites ----------- Power Ion Engine Engine Ion Engine Propulsion Aluminum Leg Leg Aluminum Leg Utility Signal Interpreter Storage Medium Storage Unit Processor Signal Interpreter Weapon Particle Gun Energy Gun Particle Gun Ballistic Gun Assault Rifle Launcher Grenade Launcher Build | -11 -10 -10 -10 ------- Run | Scr Mat Min Exi Slots Evolved . | . . . . Power . | . . . . Propulsion . | . . . . Utility . | . . . . Weapon . | . . . . Parts Attached 19 | 6 9 3 1 Power 3 | 1 1 . 1 Engine 3 | 1 1 . 1 Core . | . . . . Reactor . | . . . . Propulsion 7 | 1 4 2 . Treads . | . . . . Leg 7 | 1 4 2 . Wheel . | . . . . Hover . | . . . . Flight . | . . . . Utility 3 | 1 2 . . Device . | . . . . Storage 2 | 1 1 . . Processor 1 | . 1 . . Hackware . | . . . . Protection . | . . . . Artifact . | . . . . Weapon 6 | 3 2 1 . Energy Gun 3 | 2 1 . . Energy Cannon . | . . . . Ballistic Gun 2 | 1 1 . . Ballistic Cannon . | . . . . Launcher 1 | . . 1 . Special Weapon . | . . . . Impact Weapon . | . . . . Slashing Weapon . | . . . . Piercing Weapon . | . . . . Special Melee Weapon . | . . . . Unidentified Prototypes . | . . . . Parts Lost 6 | . 1 . 5 Power 1 | . . . 1 Propulsion 2 | . . . 2 Utility . | . . . . Weapon 3 | . 1 . 2 Highest Loss Streak 5 | . 1 . 5 Average Slot Usage (%) 97 | . 95 100 95 Engine 13 | . 14 14 13 Leg 26 | . 26 28 26 Storage 14 | . 14 14 14 Processor 13 | . 13 14 14 Energy Gun 12 | . 11 14 13 Ballistic Gun 8 | . 15 2 . Launcher 6 | . . 11 12 Naked Turns . | . . . . Heaviest Build 19 | 11 18 19 19 Greatest Support 20 | 10 20 20 20 Greatest Overweight (x) 5 | 3 1 . 5 Average Overweight (x) . | 1 . . . Largest Inventory Capacity 8 | 6 8 8 8 Average Capacity 7 | 5 6 8 8 Most Carried 8 | 5 8 8 8 Average Carried 6 | 2 6 8 8 Final Capacity 8 | 6 8 8 8 Final Carried 8 | 5 8 8 8 Class Distribution -------------------- 54% | Mutant 45% | Scavenger-Mutant Dominant Class ---------------- Mutant | -10/Materials Scavenger-Mutant | -10/Mines Mutant | -10/Exiles Resources | -11 -10 -10 -10 ----------- Run | Scr Mat Min Exi Matter Collected 529 | 150 304 75 . Remotely . | . . . . Salvage Created 585 | . 467 118 . Parts 49 | . 41 8 . Haulers Intercepted . | . . . . Recyclers Shooed . | . . . . Parts Field Recycled . | . . . . Retrieved Matter . | . . . . Parts Self-Destructed . | . . . . Prevented . | . . . . Kills | -11 -10 -10 -10 ------- Run | Scr Mat Min Exi Combat Hostiles Destroyed 18 | . 14 4 . Guns 16 | . 13 3 . AOE 1 | . . 1 . Classes Destroyed 4 | . 4 . . Worker 3 | . 1 2 . Watcher 2 | . 2 . . Swarmer 12 | . 9 3 . Grunt 6 | . 5 1 . Best Kill Streak 5 | . 5 5 . Combat Bots Only 5 | . 5 3 . Max Kills in Single Turn 3 | . 2 3 . Gunslinging . | . . . . Exploded 1 | . . 1 . Melee . | . . . . Uniques/NPCs Destroyed . | . . . . Combat | -11 -10 -10 -10 -------- Run | Scr Mat Min Exi Damage Taken 908 | . 330 147 431 Core 273 | . 65 14 194 Absorbed by Shields . | . . . . Core Remaining (%) 100 | 100 . . . Volleys Fired 43 | . 34 8 1 Largest 2 | . 2 2 1 Hottest 95 | . 85 95 65 Shots Fired 75 | . 58 16 1 Gun 72 | . 58 13 1 Cannon . | . . . . Launcher 3 | . . 3 . Special . | . . . . Kinetic 41 | . 36 5 . Thermal 11 | . 2 8 1 Explosive 3 | . . 3 . Electromagnetic 20 | . 20 . . Robot Hit Streak 16 | . 16 12 2 Robot Miss Streak 2 | . 2 1 . Penetration Max . | . . . . Secondary Targets . | . . . . Shots Hit Robots 60 | . 46 13 1 Core Hits 35 | . 25 10 . Critical Hits . | . . . . Critical Kills . | . . . . Critical Parts Destroyed . | . . . . Melee Attacks . | . . . . Impact . | . . . . Slashing . | . . . . Piercing . | . . . . Sneak Attacks . | . . . . Combat Hostiles . | . . . . Follow-up Attacks . | . . . . Damage Inflicted 1045 | . 715 312 18 Guns 826 | . 623 185 18 Cannons . | . . . . Explosions 219 | . 92 127 . Melee . | . . . . Ramming . | . . . . Kinetic 403 | . 340 63 . Thermal 249 | . 109 122 18 Explosive 127 | . . 127 . Electromagnetic 266 | . 266 . . Impact . | . . . . Slashing . | . . . . Piercing . | . . . . Highest Corruption . | . . . . Average Corruption . | . . . . Corruption Purged . | . . . . Overload Shots . | . . . . Overflow Damage . | . . . . Projectiles . | . . . . Explosions . | . . . . Melee . | . . . . Knockbacks . | . . . . Impact . | . . . . Kinetic . | . . . . Secondary . | . . . . Self-Inflicted Damage 68 | . 31 37 . Shots 4 | . 2 2 . Rammed . | . . . . Targets Rammed . | . . . . Kicked . | . . . . Crushed . | . . . . Highest Temperature 186 | . 75 186 24 Average Temperature 45 | . 23 81 14 Received Heat Transfer 232 | . 126 66 40 Siege Activations . | . . . . Robots Corrupted 1 | . 1 . . Combat Hostiles 1 | . 1 . . Parts Fried 1 | . 1 . . Impact Corruptions . | . . . . Robots Melted . | . . . . Combat Hostiles . | . . . . Parts Melted . | . . . . Heat Transferred 520 | . 187 296 37 Parts Sabotaged . | . . . . Parts Stolen . | . . . . Parts Stripped . | . . . . Power Chain Reactions 2 | . 2 . . Missiles Intercepted . | . . . . Alert | -11 -10 -10 -10 ------- Run | Scr Mat Min Exi Peak Influence 314 | . 314 162 . Initial 37 | . . 37 . Average 89 | . 111 72 . Maximum Alert Level 1 | . 1 . . Low Security (%) 85 | 100 73 100 . Level 1 14 | . 26 . . Level 2 . | . . . . Level 3 . | . . . . Level 4 . | . . . . Level 5 . | . . . . High Security . | . . . . Max Security . | . . . . Squads Dispatched . | . . . . Investigation . | . . . . Extermination . | . . . . Reinforcement . | . . . . Assault . | . . . . Garrison . | . . . . Intercept . | . . . . Construction Impeded . | . . . . Haulers Reinforced . | . . . . Stealth | -11 -10 -10 -10 --------- Run | Scr Mat Min Exi Distress Signals 1 | . 1 . . Communications Jammed . | . . . . Distress Signals . | . . . . Times Spotted 36 | . 23 6 7 Peak Tracking Total 11 | . 4 3 11 Tactical Retreats 4 | . 1 2 1 Traps | -11 -10 -10 -10 ------- Run | Scr Mat Min Exi Traps Triggered 1 | . 1 . . Indirectly . | . . . . Trap Hack Attempts . | . . . . Triggered . | . . . . Disarmed . | . . . . Reprogrammed . | . . . . Reused . | . . . . Traps Extracted . | . . . . Installed . | . . . . Triggered . | . . . . Machines | -11 -10 -10 -10 ---------- Run | Scr Mat Min Exi Machines Disabled . | . . . . Max in Single Turn . | . . . . Machines Sabotaged . | . . . . Garrisons Compromised . | . . . . Overloaded Fab Kills . | . . . . Fab Network Shutdowns . | . . . . Hacking | -11 -10 -10 -10 --------- Run | Scr Mat Min Exi Machines Accessed 4 | . 4 . . Terminals 2 | . 2 . . Fabricators . | . . . . Repair Stations 1 | . 1 . . Recycling Units 1 | . 1 . . Scanalyzers . | . . . . Garrison Access . | . . . . Total Hacks 13 | . 13 . . Successful 6 | . 6 . . Failed 7 | . 7 . . Catastrophic . | . . . . Database Lockouts . | . . . . Manual 4 | . 4 . . Terminals 7 | . 7 . . Fabricators . | . . . . Repair Stations 3 | . 3 . . Recycling Units 3 | . 3 . . Scanalyzers . | . . . . Garrison Access . | . . . . Terminal Hacks 5 | . 5 . . Record 3 | . 3 . . Part Schematic 1 | . 1 . . Unreport Threat 1 | . 1 . . Fabricator Hacks . | . . . . Repair Station Hacks 1 | . 1 . . Scan Component 1 | . 1 . . Recycling Unit Hacks . | . . . . Scanalyzer . | . . . . Garrison Access Hacks . | . . . . Unauthorized Hacks . | . . . . Terminals . | . . . . Fabricators . | . . . . Repair Stations . | . . . . Recycling Units . | . . . . Scanalyzers . | . . . . Garrison Access . | . . . . Data Cores Recovered . | . . . . Used . | . . . . Hacking Detections 4 | . 4 . . Full Trace Events . | . . . . Feedback Events . | . . . . Feedback Blocked . | . . . . Robot Schematics Acquired . | . . . . Robots Built . | . . . . Matter . | . . . . Time . | . . . . Total Robot Build Rating . | . . . . Part Schematics Acquired 1 | . 1 . . Parts Built . | . . . . Matter . | . . . . Time . | . . . . Total Part Build Rating . | . . . . Parts Repaired . | . . . . Time . | . . . . Parts Recycled . | . . . . Recycled Matter . | . . . . Retrieved Matter . | . . . . Retrieved Components . | . . . . Parts Scanalyzed . | . . . . Part Schematics Acquired . | . . . . Parts Damaged . | . . . . Bothacking | -11 -10 -10 -10 ------------ Run | Scr Mat Min Exi Used RIF Installer . | . . . . Robots Hacked . | . . . . Non-combat . | . . . . Combat . | . . . . Robot Hacks Applied . | . . . . Relay Couplers Released . | . . . . Robots Rewired . | . . . . Allies Hacked . | . . . . Hacks Repelled . | . . . . Allies | -11 -10 -10 -10 -------- Run | Scr Mat Min Exi Total Allies . | . . . . Largest Group . | . . . . Highest-Rated Group . | . . . . Highest-Rated Ally . | . . . . Total Orders . | . . . . Ally Attacks . | . . . . Total Damage . | . . . . Kills . | . . . . Allies Corrupted . | . . . . Allies Melted . | . . . . Intel | -11 -10 -10 -10 ------- Run | Scr Mat Min Exi Robot Analysis Total . | . . . . Derelict Logs Recovered 1 | . . 1 . Drone Launches . | . . . . Drone Recoveries . | . . . . Exploration | -11 -10 -10 -10 ------------- Run | Scr Mat Min Exi Turns Passed 1821 | 81 865 679 196 Spaces Moved 1283 | 45 553 530 155 Core 13 | 11 . . 2 Treads . | . . . . Legs 1270 | 34 553 530 153 Wheels . | . . . . Hover . | . . . . Flight . | . . . . Fastest Speed 50 | 50 120 120 120 Average Speed 123 | 152 124 120 122 Slowest Speed 300 | 200 150 120 300 Overloaded Moves . | . . . . Propulsion Burnouts . | . . . . Robots Hopped . | . . . . Cave-ins Triggered . | . . . . Exploration Rate (%) 49 | 4 61 99 35 Regions Visited 3 Branch Regions 2 Pre-discovered Areas 1 | . . 1 . Known Exits Taken 2 | . 1 1 . Unknown Exits Taken 1 | 1 . . . Scrap Searched 2 | . . 2 . Spaces Dug . | . . . . Terrain Destroyed 30 | . 7 23 . Melee . | . . . . Projectile . | . . . . AOE 30 | . 7 23 . Terrain Rammed . | . . . . Walls Destroyed . | . . . . Machines Disabled . | . . . . Actions | -11 -10 -10 -10 --------- Run | Scr Mat Min Exi Total 1450 | 55 678 557 160 Wait 80 | . 63 15 2 Move 1280 | 44 552 529 155 Hop . | . . . . Pick Up 14 | 5 9 . . Fast Attach 9 | 5 3 . 1 Attach 1 | . 1 . . Detach . | . . . . Swap 9 | 1 5 3 . Drop 14 | . 11 2 1 Fire 43 | . 34 8 1 Melee . | . . . . Ram . | . . . . Kick . | . . . . Crush . | . . . . Escape Stasis . | . . . . Rewire . | . . . . Trap . | . . . . Miscellaneous . | . . . . Route ------- -11/Scrapyard -10/Materials (discovered 3 exits: *Mat x2 / *Min) -10/Mines (discovered 3 exits: *Mat x2 / *Exi) -10/Exiles (discovered 1 exit: *Min) History --------- Turn | Location | Event 30 | -11/Scrapyard | Discovered new exit (range 15) 82 | -11/Scrapyard | Entered Materials 316 | -10/Materials | Build established: Mutant 463 | -10/Materials | Discovered new exit (range 15) 483 | -10/Materials | Identified exit to Mines 710 | -10/Materials | Discovered new exit (range 16) 770 | -10/Materials | Identified exit to Materials 835 | -10/Materials | Discovered exit to Materials (range 15) 947 | -10/Materials | Entered Mines 996 | -10/Mines | Learned Materials machine intel 1043 | -10/Mines | Build established: Scavenger-Mutant 1062 | -10/Mines | Learned location of Storage (-7) 1124 | -10/Mines | Discovered exit to Materials (range 9) 1277 | -10/Mines | Discovered exit to Materials (range 15) 1614 | -10/Mines | Deemed a non-threat by the Exiles lab entrance 1614 | -10/Mines | Discovered new exit (range 5) 1619 | -10/Mines | Identified exit to Exiles 1626 | -10/Mines | Entered Exiles 1652 | -10/Exiles | Discovered new exit (range 14) 1668 | -10/Exiles | Identified exit to Mines 1692 | -10/Exiles | Met 8R-AWN 1712 | -10/Exiles | Met EX-HEX 1805 | -10/Exiles | Attacked by the Exiles 1818 | -10/Exiles | Core integrity fell below 50% 1821 | -10/Exiles | Core integrity fell below 20% 1822 | -10/Exiles | Destroyed by as-23712 with Assembled Blade Last Messages --------------- more about the Assembled. They're clearly not of 0b10 construction, and their tech is weird, seemingly copying a wide array of components of other bots with little pattern or logic. It's almost like the early stages of some sort of... evolution. I'd love to just go ask the Imprinter what all this is about, she must know something, but I doubt that would end well. The Zionites will tell you those Marauders at the gates are defenses set up by Warlord... Nope, the Imprinter put them there mostly to keep us out! Anyway, I've got to get back to poking and prodding these nasty little guys. Go see BIN. I can't imagine you'll want to stay in our boring little cave for long, and we could use some help with the project in the back. 01805_ EXILES: Hostile robot within lab perimeter. Defensive protocols time, folks! 01807_ Grenade Launcher destroyed. 01810_ Aluminum Leg destroyed. 01815_ Particle Gun destroyed. 01818_ Knocked back. 01819_ Ion Engine destroyed. 01820_ Penetrated by HV Slug. 01821_ EX-BIN: "I just want to science!" Map ----- +----------------------------------------------------+ | ?????????????????????????????????????????????????? | | ?????????????????????????????????????????????????? | | ?????????????????????????????????????????????????? | | ?????????????????????????????????????????????????? | | ?????????????????????????????????????????????????? | | ???????????????????????? ???????????????????????? | | ??????????????????????? #??????????????????????? | | ?????????????????????? #????###########??????? | | ????????????????????? #####"""""""""##?????? | | ????????????????????? " """ """"##????? | | ????????????????????? "" " #????? | | ???????????????????? " """#????? | | ???????????????????? " "#????? | | ???????????????????? " "##???? | | ???????????????????? ""###?? | | ?????? ??????????????"" """#?? | | ????? ??????????????""" "#?? | | ???? ??????????????###""" ##? | | ???? ???????????????##""" ## | | ???? "???????????????#"""" # | | ??? "?????????????##"" | | ?? ##?#####??####"""" | | ?? ##aaa####""" | | ?? """" a | | ?? a a | | ?? @a a # | | ?? c c a a " ## | | ?? " "" """ ""#? | | ??" ""## ##""" " " ""#" "##? | | ??? ""#### ######""" """##"""""""##?? | | ??? """"##??# #????###""""###########??? | | ???? """???## ####????#####????????????? | | ???? ""#???#! "!#?????????????????????? | | ???? """#????#" !#?????????????????????? | | ????? ???????#" "#?????????????????????? | | ?????" ?????????#!!""!"#?????????????????????? | | ?????? ??????????########?????????????????????? | | ?????????????????????????????????????????????????? | | ?????????????????????????????????????????????????? | | ?????????????????????????????????????????????????? | | ?????????????????????????????????????????????????? | | ?????????????????????????????????????????????????? | | ?????????????????????????????????????????????????? | | ?????????????????????????????????????????????????? | | ?????????????????????????????????????????????????? | | ?????????????????????????????????????????????????? | | ?????????????????????????????????????????????????? | | ?????????????????????????????????????????????????? | | ?????????????????????????????????????????????????? | | ?????????????????????????????????????????????????? | +----------------------------------------------------+ Best States ------------- Heat Dissipation 25 Energy Generation 10 Energy Capacity 250 Matter Stores 300 Matter Capacity 300 Sight Range 16 Terrain Scan Density 10 Resistance: KI 20 Resistance: TH 20 Resistance: EX 20 Resistance: EM 20 Resistance: I 20 Resistance: S 20 Resistance: P 20 Evasion (%) 40 Offensive Hacking 10 Item Schematics ----------------- Med. Storage Unit | -10/Materials | Hacked Robot Schematics ------------------ None Fabricated ------------ Nothing Alien Tech Used ----------------- None Achievements -------------- None Challenges ------------ None Game ------ Seed MasterSwarmTerminator Manual? 0 Play Time 00:22:22 Cumulative 24.4 hours Start 2020.10.01 @ 22:08:51 End 2020.10.01 @ 22:28:37 Sessions 1 Manual Loads 0 Difficulty Adventurer Special Mode None Game No. 12 Rogue 0 Adventurer 12 Explorer 0 Win Type - Total 0 Types 0/0/0/0/0/0/0/0/0 Lore% 14 Gallery% 23 Achievement% 18 Wizard Run 0 Options --------- ASCII 0 Keyboard 1 Movement Vi Keybinds 1 Fullscreen 2 Font 14/SmallcapsGlow Map View 84x54 Tactical HUD 1 Map Filters NONE Filters NONE Steam 1 RUN: 06b992d6-6a05-4f51-af69-a8e722f4d179